[Event "*** Titled Tuesday Blitz"]
[Site "Chess.com"]
[Date "2020.11.03"]
[Round "5"]
[White "Meri-Arabidze"]
[Black "andriipalchuk"]
[Result "1-0"]
[WhiteElo "2656"]
[BlackElo "2450"]
[TimeControl "180+1"]
[EndTime "10:58:41 PST"]
[Termination "Meri-Arabidze won by resignation"]

1. Nf3 {[%clk 0:03:00.9]} 1... Nf6 {[%clk 0:02:45.8]} 2. b3 {[%clk 0:03:01.8]}
2... e6 {[%clk 0:02:45.4]} 3. Bb2 {[%clk 0:03:02]} 3... Be7 {[%clk 0:02:44]} 4.
e3 {[%clk 0:03:02.3]} 4... d5 {[%clk 0:02:44.2]} 5. c4 {[%clk 0:03:03]} 5... c6
{[%clk 0:02:43.3]} 6. Qc2 {[%clk 0:03:03]} 6... Nbd7 {[%clk 0:02:43.6]} 7. Be2
{[%clk 0:03:03.1]} 7... a5 {[%clk 0:02:43.2]} 8. Nc3 {[%clk 0:03:03.4]} 8... O-O
{[%clk 0:02:40.6]} 9. Rg1 {[%clk 0:03:03.7]} 9... dxc4 {[%clk 0:02:29.8]} 10.
Bxc4 {[%clk 0:03:02.9]} 10... b5 {[%clk 0:02:26.5]} 11. Be2 {[%clk 0:03:02.7]}
11... a4 {[%clk 0:02:22.6]} 12. bxa4 {[%clk 0:02:56.1]} 12... b4 {[%clk
0:02:22.6]} 13. Ne4 {[%clk 0:02:54]} 13... Nxe4 {[%clk 0:02:21.9]} 14. Qxe4
{[%clk 0:02:54.9]} 14... Nc5 {[%clk 0:02:16.8]} 15. Qc2 {[%clk 0:02:19]} 15...
Nxa4 {[%clk 0:02:16.4]} 16. Be5 {[%clk 0:02:18.3]} 16... f6 {[%clk 0:02:15.5]}
17. Bg3 {[%clk 0:02:14.4]} 17... c5 {[%clk 0:01:57.1]} 18. h4 {[%clk 0:02:12.5]}
18... Ba6 {[%clk 0:01:53.5]} 19. h5 {[%clk 0:02:09.6]} 19... Qd5 {[%clk
0:01:39.7]} 20. h6 {[%clk 0:02:07.4]} 20... g6 {[%clk 0:01:27.7]} 21. Rh1 {[%clk
0:02:03.4]} 21... c4 {[%clk 0:01:15.6]} 22. Rh4 {[%clk 0:01:59.8]} 22... b3
{[%clk 0:01:09.4]} 23. axb3 {[%clk 0:01:45.1]} 23... cxb3 {[%clk 0:01:10.3]} 24.
Qb1 {[%clk 0:01:35.5]} 24... Bxe2 {[%clk 0:01:07.1]} 25. Kxe2 {[%clk 0:01:36.4]}
25... Qb5+ {[%clk 0:00:34.9]} 26. Ke1 {[%clk 0:01:35.8]} 26... Nc3 {[%clk
0:00:23.9]} 27. dxc3 {[%clk 0:01:29]} 27... Rxa1 {[%clk 0:00:24.3]} 28. Qxa1
{[%clk 0:01:29.6]} 28... b2 {[%clk 0:00:24.9]} 29. Qb1 {[%clk 0:01:26.6]} 29...
Ra8 {[%clk 0:00:25.3]} 30. Rb4 {[%clk 0:01:15.8]} 30... Bxb4 {[%clk 0:00:15.4]}
31. Qxb2 {[%clk 0:01:15.7]} 31... Qd3 {[%clk 0:00:04.2]} 32. cxb4 {[%clk
0:01:12.5]} 32... Rc8 {[%clk 0:00:03.5]} 33. Nd4 {[%clk 0:01:00.5]} 33... e5
{[%clk 0:00:02.9]} 34. Qb3+ {[%clk 0:00:55.8]} 34... Qxb3 {[%clk 0:00:02.3]} 35.
Nxb3 {[%clk 0:00:56.7]} 35... Rb8 {[%clk 0:00:03]} 36. Nc5 {[%clk 0:00:53.6]}
36... Rxb4 {[%clk 0:00:03.5]} 37. Ke2 {[%clk 0:00:52.7]} 37... Kf7 {[%clk
0:00:02.9]} 38. e4 {[%clk 0:00:47.7]} 38... Rc4 {[%clk 0:00:02.6]} 39. Nb7
{[%clk 0:00:39.6]} 39... Rxe4+ {[%clk 0:00:03]} 40. Kf3 {[%clk 0:00:40.5]} 40...
Rc4 {[%clk 0:00:03.2]} 41. Nd6+ {[%clk 0:00:37.2]} 1-0

[Event "*** Titled Tuesday Blitz"]
[Site "Chess.com"]
[Date "2020.11.03"]
[Round "5"]
[White "ChelsieMonica"]
[Black "WiktoriaPOL"]
[Result "1-0"]
[WhiteElo "2320"]
[BlackElo "2086"]
[TimeControl "180+1"]
[EndTime "10:58:42 PST"]
[Termination "ChelsieMonica won on time"]

1. c4 {[%clk 0:03:00.9]} 1... Nf6 {[%clk 0:02:59.7]} 2. Nf3 {[%clk 0:03:00.8]}
2... g6 {[%clk 0:02:59]} 3. e3 {[%clk 0:03:00.5]} 3... Bg7 {[%clk 0:02:58.9]} 4.
d4 {[%clk 0:03:00.1]} 4... d6 {[%clk 0:02:56.5]} 5. Be2 {[%clk 0:03:01]} 5...
O-O {[%clk 0:02:56.9]} 6. Nc3 {[%clk 0:02:59.4]} 6... Nbd7 {[%clk 0:02:56.4]} 7.
h3 {[%clk 0:02:54]} 7... e5 {[%clk 0:02:55.6]} 8. dxe5 {[%clk 0:02:54.2]} 8...
Nxe5 {[%clk 0:02:53.2]} 9. O-O {[%clk 0:02:53.6]} 9... Be6 {[%clk 0:02:50.4]}
10. Nxe5 {[%clk 0:02:52.7]} 10... dxe5 {[%clk 0:02:50]} 11. Qb3 {[%clk
0:02:51.9]} 11... b6 {[%clk 0:02:44.8]} 12. Bf3 {[%clk 0:02:43.4]} 12... Rc8
{[%clk 0:02:42.6]} 13. Rd1 {[%clk 0:02:40.8]} 13... Qe7 {[%clk 0:02:41.4]} 14.
Nb5 {[%clk 0:02:40.4]} 14... a6 {[%clk 0:02:33.2]} 15. Na7 {[%clk 0:02:38.2]}
15... Rcd8 {[%clk 0:02:30.1]} 16. Nc6 {[%clk 0:02:36.6]} 16... Rxd1+ {[%clk
0:02:29]} 17. Qxd1 {[%clk 0:02:35.1]} 17... Qd7 {[%clk 0:02:28.4]} 18. Nxe5
{[%clk 0:02:31.6]} 18... Qxd1+ {[%clk 0:02:27.1]} 19. Bxd1 {[%clk 0:02:32.5]}
19... Ne4 {[%clk 0:02:25.3]} 20. Nf3 {[%clk 0:02:26.7]} 20... Bxc4 {[%clk
0:02:24.2]} 21. Bc2 {[%clk 0:02:26.4]} 21... f5 {[%clk 0:02:20.3]} 22. Nd4
{[%clk 0:02:13.5]} 22... Rd8 {[%clk 0:02:01.1]} 23. f3 {[%clk 0:02:05]} 23...
Nc5 {[%clk 0:01:55.9]} 24. b3 {[%clk 0:01:59.4]} 24... Rxd4 {[%clk 0:01:31.4]}
25. exd4 {[%clk 0:01:47]} 25... Bxd4+ {[%clk 0:01:32.3]} 26. Kh1 {[%clk
0:01:45.5]} 26... Bxa1 {[%clk 0:01:23.2]} 27. bxc4 {[%clk 0:01:44.2]} 27... Bd4
{[%clk 0:01:14.4]} 28. g4 {[%clk 0:01:41.5]} 28... fxg4 {[%clk 0:01:12.7]} 29.
fxg4 {[%clk 0:01:39.8]} 29... Kf7 {[%clk 0:01:11.7]} 30. Kg2 {[%clk 0:01:38.9]}
30... Ke6 {[%clk 0:01:09.9]} 31. Kf3 {[%clk 0:01:37.5]} 31... b5 {[%clk
0:01:03.4]} 32. cxb5 {[%clk 0:01:35.3]} 32... axb5 {[%clk 0:01:04.3]} 33. h4
{[%clk 0:01:32.9]} 33... Kd5 {[%clk 0:00:57.8]} 34. h5 {[%clk 0:01:32.3]} 34...
gxh5 {[%clk 0:00:44.6]} 35. gxh5 {[%clk 0:01:33.2]} 35... Ne6 {[%clk 0:00:38.9]}
36. Bxh7 {[%clk 0:01:30.3]} 36... Be5 {[%clk 0:00:33]} 37. Bg8 {[%clk
0:01:27.6]} 37... c5 {[%clk 0:00:28.1]} 38. h6 {[%clk 0:01:26.1]} 38... c4
{[%clk 0:00:22.9]} 39. h7 {[%clk 0:01:25.5]} 39... c3 {[%clk 0:00:18.8]} 40. Ke2
{[%clk 0:01:21.1]} 40... Kd6 {[%clk 0:00:07.5]} 41. Ba3+ {[%clk 0:01:19.7]}
41... Kd7 {[%clk 0:00:03.7]} 42. Kd3 {[%clk 0:01:12.6]} 42... Nf4+ {[%clk
0:00:02.6]} 43. Kc2 {[%clk 0:01:11.6]} 43... Ne2 {[%clk 0:00:02.7]} 44. Bc5
{[%clk 0:01:04.1]} 44... Kc6 {[%clk 0:00:02.2]} 45. Be3 {[%clk 0:00:59.9]} 45...
b4 {[%clk 0:00:01.6]} 46. Bc4 {[%clk 0:00:57.2]} 1-0

[Event "*** Titled Tuesday Blitz"]
[Site "Chess.com"]
[Date "2020.11.03"]
[Round "5"]
[White "Atousa1"]
[Black "PaulfromSPb"]
[Result "0-1"]
[WhiteElo "2421"]
[BlackElo "2715"]
[TimeControl "180+1"]
[EndTime "10:58:43 PST"]
[Termination "PaulfromSPb won on time"]

1. e4 {[%clk 0:03:00.9]} 1... c5 {[%clk 0:02:57.3]} 2. Nf3 {[%clk 0:03:00.6]}
2... d6 {[%clk 0:02:57.4]} 3. d4 {[%clk 0:03:00.5]} 3... cxd4 {[%clk 0:02:58.3]}
4. Nxd4 {[%clk 0:03:01.1]} 4... Nf6 {[%clk 0:02:58.4]} 5. Nc3 {[%clk 0:03:01.7]}
5... a6 {[%clk 0:02:58.9]} 6. Be2 {[%clk 0:03:02.2]} 6... g6 {[%clk 0:02:56.1]}
7. O-O {[%clk 0:03:00.4]} 7... Bg7 {[%clk 0:02:57]} 8. Be3 {[%clk 0:03:00.4]}
8... b5 {[%clk 0:02:55.9]} 9. a4 {[%clk 0:02:45.6]} 9... b4 {[%clk 0:02:53.3]}
10. Nd5 {[%clk 0:02:45.5]} 10... Bb7 {[%clk 0:02:43.1]} 11. Bf3 {[%clk
0:02:19.5]} 11... Nfd7 {[%clk 0:02:34.5]} 12. Nxb4 {[%clk 0:02:05.9]} 12... O-O
{[%clk 0:02:29.5]} 13. a5 {[%clk 0:02:00.5]} 13... Ne5 {[%clk 0:02:27.7]} 14.
Nd5 {[%clk 0:01:56]} 14... Nbd7 {[%clk 0:02:25.6]} 15. Be2 {[%clk 0:01:50.5]}
15... e6 {[%clk 0:02:22.2]} 16. Nb6 {[%clk 0:01:41.1]} 16... Nxb6 {[%clk
0:02:15.3]} 17. axb6 {[%clk 0:01:42]} 17... Bxe4 {[%clk 0:02:14.5]} 18. Bxa6
{[%clk 0:01:30.4]} 18... Rb8 {[%clk 0:01:57.5]} 19. Nb3 {[%clk 0:01:12.7]} 19...
Bd5 {[%clk 0:01:34.1]} 20. Be2 {[%clk 0:01:05.6]} 20... Nc4 {[%clk 0:01:27.6]}
21. Bxc4 {[%clk 0:00:49.4]} 21... Bxc4 {[%clk 0:01:28.5]} 22. Re1 {[%clk
0:00:50]} 22... Bxb2 {[%clk 0:01:26.9]} 23. Rb1 {[%clk 0:00:50.2]} 23... Bc3
{[%clk 0:01:26]} 24. Bd2 {[%clk 0:00:49]} 24... Bg7 {[%clk 0:01:17.7]} 25. Be3
{[%clk 0:00:48.7]} 25... d5 {[%clk 0:01:15.7]} 26. Nd2 {[%clk 0:00:42.1]} 26...
Ba6 {[%clk 0:01:12.5]} 27. Nf3 {[%clk 0:00:41.8]} 27... e5 {[%clk 0:01:08.2]}
28. Qd2 {[%clk 0:00:34]} 28... Re8 {[%clk 0:01:04.4]} 29. Bc5 {[%clk 0:00:31.8]}
29... d4 {[%clk 0:01:00.7]} 30. Ra1 {[%clk 0:00:26.8]} 30... Bb7 {[%clk
0:01:00.2]} 31. Qd1 {[%clk 0:00:21.8]} 31... Qd5 {[%clk 0:00:59]} 32. Ra5 {[%clk
0:00:20]} 32... Ra8 {[%clk 0:00:56.8]} 33. Rxa8 {[%clk 0:00:16.9]} 33... Bxa8
{[%clk 0:00:56.7]} 34. Bb4 {[%clk 0:00:17.2]} 34... e4 {[%clk 0:00:56.3]} 35.
Nd2 {[%clk 0:00:14.6]} 35... Qb5 {[%clk 0:00:52.1]} 36. Bd6 {[%clk 0:00:11.6]}
36... Qxb6 {[%clk 0:00:51.6]} 37. Bg3 {[%clk 0:00:11.7]} 37... e3 {[%clk
0:00:42.7]} 38. Nf3 {[%clk 0:00:07.9]} 38... Qc6 {[%clk 0:00:40.9]} 39. fxe3
{[%clk 0:00:06.9]} 39... dxe3 {[%clk 0:00:41.8]} 40. Qd3 {[%clk 0:00:04.5]}
40... Qc5 {[%clk 0:00:38]} 41. c3 {[%clk 0:00:03]} 41... Qxc3 {[%clk 0:00:36.3]}
42. Qxc3 {[%clk 0:00:02.1]} 42... Bxc3 {[%clk 0:00:37.2]} 43. Re2 {[%clk
0:00:02]} 43... Bd5 {[%clk 0:00:36.1]} 44. Bf4 {[%clk 0:00:01]} 44... Bxf3
{[%clk 0:00:34.8]} 0-1

[Event "*** Titled Tuesday Blitz"]
[Site "Chess.com"]
[Date "2020.11.03"]
[Round "5"]
[White "ecwinslow"]
[Black "zmeeed67"]
[Result "0-1"]
[WhiteElo "2199"]
[BlackElo "2353"]
[TimeControl "180+1"]
[EndTime "10:58:43 PST"]
[Termination "zmeeed67 won on time"]

1. e4 {[%clk 0:03:00.9]} 1... Nc6 {[%clk 0:02:57.5]} 2. Nf3 {[%clk 0:02:59.9]}
2... d6 {[%clk 0:02:57.6]} 3. d4 {[%clk 0:02:58.7]} 3... Nf6 {[%clk 0:02:57.6]}
4. Nc3 {[%clk 0:02:58.1]} 4... Bg4 {[%clk 0:02:57.5]} 5. Be3 {[%clk 0:02:54.9]}
5... a6 {[%clk 0:02:56.9]} 6. h3 {[%clk 0:02:42.1]} 6... Bh5 {[%clk 0:02:56.2]}
7. Qe2 {[%clk 0:02:39.4]} 7... e5 {[%clk 0:02:55.6]} 8. dxe5 {[%clk 0:02:32.8]}
8... dxe5 {[%clk 0:02:54.6]} 9. g4 {[%clk 0:02:30.9]} 9... Bg6 {[%clk
0:02:53.9]} 10. Rd1 {[%clk 0:02:30.5]} 10... Qc8 {[%clk 0:02:50.7]} 11. Qc4
{[%clk 0:02:16.6]} 11... Bb4 {[%clk 0:02:43.9]} 12. Bd3 {[%clk 0:02:05.6]} 12...
O-O {[%clk 0:02:34.2]} 13. Kf1 {[%clk 0:01:59.2]} 13... b5 {[%clk 0:02:25.8]}
14. Qxc6 {[%clk 0:01:57.1]} 14... Bd6 {[%clk 0:02:09.8]} 15. g5 {[%clk
0:01:46.4]} 15... Nh5 {[%clk 0:02:06.6]} 16. Nd5 {[%clk 0:01:42.8]} 16... Qd8
{[%clk 0:01:51.7]} 17. c4 {[%clk 0:01:29.7]} 17... bxc4 {[%clk 0:01:50.2]} 18.
Qxc4 {[%clk 0:01:28.6]} 18... Kh8 {[%clk 0:01:48]} 19. Kg2 {[%clk 0:01:12.6]}
19... Rc8 {[%clk 0:01:45]} 20. Qc3 {[%clk 0:00:53.8]} 20... c6 {[%clk
0:01:43.5]} 21. Nb6 {[%clk 0:00:52]} 21... Rb8 {[%clk 0:01:41.5]} 22. Nc4 {[%clk
0:00:50.2]} 22... Bb4 {[%clk 0:01:29.1]} 23. Qc2 {[%clk 0:00:49.7]} 23... f6
{[%clk 0:01:28.3]} 24. a3 {[%clk 0:00:44.9]} 24... Be7 {[%clk 0:01:25.1]} 25. b4
{[%clk 0:00:44.3]} 25... fxg5 {[%clk 0:01:21.6]} 26. Nfxe5 {[%clk 0:00:41.8]}
26... Be8 {[%clk 0:01:03.8]} 27. Ng4 {[%clk 0:00:30.5]} 27... Qc7 {[%clk
0:01:00.3]} 28. e5 {[%clk 0:00:26.4]} 28... Nf4+ {[%clk 0:00:56.2]} 29. Bxf4
{[%clk 0:00:26.2]} 29... Rxf4 {[%clk 0:00:56]} 30. Rhe1 {[%clk 0:00:21.4]} 30...
c5 {[%clk 0:00:55.8]} 31. bxc5 {[%clk 0:00:18.7]} 31... Bc6+ {[%clk 0:00:55]}
32. f3 {[%clk 0:00:18.7]} 32... h5 {[%clk 0:00:53.5]} 33. Nh2 {[%clk 0:00:15.3]}
33... g4 {[%clk 0:00:53.5]} 34. hxg4 {[%clk 0:00:14.3]} 34... hxg4 {[%clk
0:00:53.7]} 35. Be4 {[%clk 0:00:12.9]} 35... gxf3+ {[%clk 0:00:53]} 36. Nxf3
{[%clk 0:00:10.1]} 36... Rg4+ {[%clk 0:00:49.7]} 37. Kf2 {[%clk 0:00:09.8]}
37... Bxc5+ {[%clk 0:00:48.8]} 38. Ne3 {[%clk 0:00:09.9]} 38... Bxe4 {[%clk
0:00:47]} 39. Rh1+ {[%clk 0:00:08.9]} 39... Kg8 {[%clk 0:00:42.9]} 40. Qc4+
{[%clk 0:00:08.6]} 40... Kf8 {[%clk 0:00:38.8]} 41. Rh8+ {[%clk 0:00:06.6]}
41... Ke7 {[%clk 0:00:38.8]} 42. Rd5 {[%clk 0:00:03.3]} 42... Bxe3+ {[%clk
0:00:38.3]} 43. Kxe3 {[%clk 0:00:02.5]} 43... Qxc4 {[%clk 0:00:38.2]} 0-1

[Event "*** Titled Tuesday Blitz"]
[Site "Chess.com"]
[Date "2020.11.03"]
[Round "5"]
[White "Mbneu"]
[Black "DinaBelenkaya"]
[Result "0-1"]
[WhiteElo "2220"]
[BlackElo "2353"]
[TimeControl "180+1"]
[EndTime "10:58:44 PST"]
[Termination "DinaBelenkaya won on time"]

1. d4 {[%clk 0:03:00.9]} 1... d5 {[%clk 0:02:54.3]} 2. c4 {[%clk 0:03:01.1]}
2... dxc4 {[%clk 0:02:53.9]} 3. Nf3 {[%clk 0:02:59.6]} 3... Nf6 {[%clk
0:02:52.5]} 4. Nc3 {[%clk 0:02:58.9]} 4... a6 {[%clk 0:02:51.6]} 5. a4 {[%clk
0:02:57.5]} 5... Nc6 {[%clk 0:02:51.3]} 6. e3 {[%clk 0:02:40.4]} 6... Na5 {[%clk
0:02:50.9]} 7. Ne5 {[%clk 0:02:39.7]} 7... Be6 {[%clk 0:02:50.7]} 8. Be2 {[%clk
0:02:37]} 8... g6 {[%clk 0:02:43.3]} 9. O-O {[%clk 0:02:34.9]} 9... Bg7 {[%clk
0:02:42.9]} 10. f4 {[%clk 0:02:35.5]} 10... c5 {[%clk 0:02:12.7]} 11. Kh1 {[%clk
0:02:09.8]} 11... Qc7 {[%clk 0:02:09.4]} 12. Bd2 {[%clk 0:01:48.9]} 12... Rd8
{[%clk 0:01:58]} 13. f5 {[%clk 0:01:18.5]} 13... gxf5 {[%clk 0:01:52.7]} 14. Qe1
{[%clk 0:01:13]} 14... Nb3 {[%clk 0:01:51.2]} 15. Rd1 {[%clk 0:00:48.4]} 15...
cxd4 {[%clk 0:01:51.2]} 16. exd4 {[%clk 0:00:48]} 16... Rxd4 {[%clk 0:01:51.1]}
17. Qg3 {[%clk 0:00:44.5]} 17... Ng4 {[%clk 0:01:37.1]} 18. Nxg4 {[%clk
0:00:23.7]} 18... Qxg3 {[%clk 0:01:38]} 19. hxg3 {[%clk 0:00:22.9]} 19... fxg4
{[%clk 0:01:38.3]} 20. Be3 {[%clk 0:00:14.2]} 20... Rxd1 {[%clk 0:01:36.4]} 21.
Rxd1 {[%clk 0:00:14.8]} 21... f5 {[%clk 0:01:11.4]} 22. Bb6 {[%clk 0:00:13.1]}
22... Kf7 {[%clk 0:01:10.7]} 23. Rf1 {[%clk 0:00:08.4]} 23... Rc8 {[%clk
0:01:06.7]} 24. Bxg4 {[%clk 0:00:07]} 24... Kg6 {[%clk 0:01:06]} 25. Bf3 {[%clk
0:00:06.2]} 25... Nd2 {[%clk 0:00:44.2]} 26. Re1 {[%clk 0:00:05.5]} 26... Nxf3
{[%clk 0:00:41.4]} 27. Rxe6+ {[%clk 0:00:05.9]} 27... Kf7 {[%clk 0:00:41.5]} 28.
Re3 {[%clk 0:00:05.4]} 28... Ng5 {[%clk 0:00:32.9]} 29. Nd5 {[%clk 0:00:05.3]}
29... Ne4 {[%clk 0:00:30.7]} 30. Nf4 {[%clk 0:00:05.1]} 30... Bxb2 {[%clk
0:00:27.8]} 31. g4 {[%clk 0:00:05.1]} 31... e6 {[%clk 0:00:26.3]} 32. gxf5
{[%clk 0:00:04.7]} 32... exf5 {[%clk 0:00:27.2]} 33. Rh3 {[%clk 0:00:04.9]}
33... Kg8 {[%clk 0:00:23.8]} 34. Nh5 {[%clk 0:00:03.4]} 34... Be5 {[%clk
0:00:23.3]} 35. Rf3 {[%clk 0:00:01.9]} 35... c3 {[%clk 0:00:21.5]} 36. Rxf5
{[%clk 0:00:01.3]} 36... c2 {[%clk 0:00:20.5]} 0-1

[Event "*** Titled Tuesday Blitz"]
[Site "Chess.com"]
[Date "2020.11.03"]
[Round "5"]
[White "Gabrielian_Artur"]
[Black "Philosopherrr"]
[Result "1-0"]
[WhiteElo "2788"]
[BlackElo "2554"]
[TimeControl "180+1"]
[EndTime "10:58:46 PST"]
[Termination "Gabrielian_Artur won by resignation"]

1. e4 {[%clk 0:03:00.9]} 1... e5 {[%clk 0:02:59.5]} 2. Nc3 {[%clk 0:02:59.3]}
2... Bc5 {[%clk 0:02:49.7]} 3. g3 {[%clk 0:02:56.2]} 3... d6 {[%clk 0:02:48.8]}
4. Bg2 {[%clk 0:02:55.5]} 4... h5 {[%clk 0:02:47.4]} 5. h3 {[%clk 0:02:54.4]}
5... Nc6 {[%clk 0:02:44.8]} 6. Nge2 {[%clk 0:02:53.6]} 6... a6 {[%clk 0:02:44]}
7. d3 {[%clk 0:02:52.8]} 7... Qf6 {[%clk 0:02:38.1]} 8. O-O {[%clk 0:02:48.3]}
8... Nge7 {[%clk 0:02:31.6]} 9. Kh1 {[%clk 0:02:39.9]} 9... h4 {[%clk
0:02:21.9]} 10. Nd5 {[%clk 0:02:14.8]} 10... Nxd5 {[%clk 0:02:20.4]} 11. exd5
{[%clk 0:02:14.8]} 11... Ne7 {[%clk 0:02:17.8]} 12. g4 {[%clk 0:02:08.2]} 12...
Bxg4 {[%clk 0:02:13.3]} 13. hxg4 {[%clk 0:02:05.6]} 13... h3 {[%clk 0:02:13]}
14. Be4 {[%clk 0:02:05.7]} 14... Qh4 {[%clk 0:01:56.4]} 15. Ng3 {[%clk
0:01:52.6]} 15... Bxf2 {[%clk 0:01:32.1]} 16. Rxf2 {[%clk 0:01:49.8]} 16... Qxg3
{[%clk 0:01:32.3]} 17. Qf3 {[%clk 0:01:48]} 17... Qxf3+ {[%clk 0:01:32.3]} 18.
Rxf3 {[%clk 0:01:45.4]} 18... f6 {[%clk 0:01:29.8]} 19. Be3 {[%clk 0:01:41.8]}
19... Rh4 {[%clk 0:01:25.8]} 20. Rg1 {[%clk 0:01:40.3]} 20... h2 {[%clk
0:01:06.2]} 21. Rg2 {[%clk 0:01:36.2]} 21... Kf7 {[%clk 0:01:03.3]} 22. Bf2
{[%clk 0:01:33.9]} 22... Rhh8 {[%clk 0:00:57.8]} 23. g5 {[%clk 0:01:25.5]} 23...
c6 {[%clk 0:00:53.6]} 24. g6+ {[%clk 0:01:12.3]} 24... Ke8 {[%clk 0:00:45.2]}
25. c4 {[%clk 0:01:10.1]} 25... cxd5 {[%clk 0:00:44.7]} 26. cxd5 {[%clk
0:01:10]} 26... Rc8 {[%clk 0:00:44.2]} 27. Rxh2 {[%clk 0:01:01.8]} 27... Rc1+
{[%clk 0:00:43.3]} 28. Kg2 {[%clk 0:01:01.6]} 28... Rxh2+ {[%clk 0:00:43.5]} 29.
Kxh2 {[%clk 0:01:02]} 29... Rc2 {[%clk 0:00:43.8]} 30. Kg1 {[%clk 0:00:55.4]}
30... Rxb2 {[%clk 0:00:42.6]} 31. a4 {[%clk 0:00:44.3]} 31... b5 {[%clk
0:00:39.1]} 32. axb5 {[%clk 0:00:43.8]} 32... axb5 {[%clk 0:00:39.7]} 33. Bb6
{[%clk 0:00:31.9]} 33... b4 {[%clk 0:00:31.3]} 34. Rh3 {[%clk 0:00:31]} 34...
Kf8 {[%clk 0:00:14]} 35. Rh8+ {[%clk 0:00:30]} 35... Ng8 {[%clk 0:00:14.2]} 36.
Bc7 {[%clk 0:00:28.6]} 36... Rb1+ {[%clk 0:00:10.6]} 37. Kf2 {[%clk 0:00:27.5]}
37... b3 {[%clk 0:00:11]} 38. Bxd6+ {[%clk 0:00:26.8]} 38... Ke8 {[%clk
0:00:11.5]} 39. Bf5 {[%clk 0:00:24.4]} 1-0

[Event "*** Titled Tuesday Blitz"]
[Site "Chess.com"]
[Date "2020.11.03"]
[Round "5"]
[White "talman67"]
[Black "chito89"]
[Result "0-1"]
[WhiteElo "2549"]
[BlackElo "2787"]
[TimeControl "180+1"]
[EndTime "10:58:48 PST"]
[Termination "chito89 won by resignation"]

1. e4 {[%clk 0:03:00.9]} 1... e5 {[%clk 0:02:59.8]} 2. Nf3 {[%clk 0:03:00.8]}
2... Nc6 {[%clk 0:03:00.2]} 3. Bb5 {[%clk 0:03:00.8]} 3... a6 {[%clk 0:03:00.5]}
4. Ba4 {[%clk 0:03:01.5]} 4... Nf6 {[%clk 0:02:59.1]} 5. O-O {[%clk 0:03:02]}
5... b5 {[%clk 0:02:59.5]} 6. Bb3 {[%clk 0:03:02.4]} 6... Bb7 {[%clk 0:03:00]}
7. c3 {[%clk 0:03:00.4]} 7... Be7 {[%clk 0:02:57]} 8. Re1 {[%clk 0:02:58.7]}
8... d5 {[%clk 0:02:52.9]} 9. exd5 {[%clk 0:02:59.6]} 9... Nxd5 {[%clk
0:02:53.8]} 10. Nxe5 {[%clk 0:03:00.3]} 10... Nxe5 {[%clk 0:02:53.4]} 11. Rxe5
{[%clk 0:03:01.2]} 11... O-O {[%clk 0:02:54]} 12. d4 {[%clk 0:02:58.1]} 12...
Qd6 {[%clk 0:02:22.8]} 13. Nd2 {[%clk 0:02:50.9]} 13... Rad8 {[%clk 0:02:19.4]}
14. Ne4 {[%clk 0:02:50.6]} 14... Qg6 {[%clk 0:02:19.1]} 15. Qh5 {[%clk 0:02:19]}
15... Qxh5 {[%clk 0:02:03.9]} 16. Rxh5 {[%clk 0:02:19.9]} 16... f5 {[%clk
0:02:04.5]} 17. Ng5 {[%clk 0:02:12.9]} 17... Rf6 {[%clk 0:01:26]} 18. Nxh7
{[%clk 0:02:03.6]} 18... Re6 {[%clk 0:01:26.1]} 19. Kf1 {[%clk 0:01:56.8]} 19...
g6 {[%clk 0:01:07.6]} 20. Rh3 {[%clk 0:01:56.4]} 20... f4 {[%clk 0:00:49.2]} 21.
Bd2 {[%clk 0:01:29.9]} 21... Kg7 {[%clk 0:00:47.1]} 22. Bxd5 {[%clk 0:01:18.7]}
22... Rxd5 {[%clk 0:00:40]} 23. Bxf4 {[%clk 0:01:17.3]} 23... c5 {[%clk
0:00:32.7]} 24. Re1 {[%clk 0:00:42.6]} 24... Rxe1+ {[%clk 0:00:29.7]} 25. Kxe1
{[%clk 0:00:43.5]} 25... Bc8 {[%clk 0:00:21.3]} 26. Re3 {[%clk 0:00:36]} 26...
Bd8 {[%clk 0:00:09.3]} 27. Re8 {[%clk 0:00:12.2]} 27... Kxh7 {[%clk 0:00:09]}
28. Be5 {[%clk 0:00:11.1]} 28... g5 {[%clk 0:00:08.4]} 29. Ke2 {[%clk
0:00:09.6]} 29... Bb7 {[%clk 0:00:04.8]} 30. f3 {[%clk 0:00:09.2]} 30... Bc6
{[%clk 0:00:05]} 31. h3 {[%clk 0:00:06.5]} 31... Bxe8 {[%clk 0:00:03.5]} 0-1

[Event "*** Titled Tuesday Blitz"]
[Site "Chess.com"]
[Date "2020.11.03"]
[Round "5"]
[White "Happy1712Drummer"]
[Black "Das_Virus_2020"]
[Result "0-1"]
[WhiteElo "2195"]
[BlackElo "2408"]
[TimeControl "180+1"]
[EndTime "10:58:48 PST"]
[Termination "Das_Virus_2020 won on time"]

1. f4 {[%clk 0:02:47.7]} 1... f5 {[%clk 0:02:58.3]} 2. Nf3 {[%clk 0:02:47]} 2...
Nf6 {[%clk 0:02:57.6]} 3. g3 {[%clk 0:02:36.8]} 3... g6 {[%clk 0:02:56.9]} 4.
Bg2 {[%clk 0:02:37.2]} 4... Bg7 {[%clk 0:02:57.2]} 5. O-O {[%clk 0:02:37.2]}
5... O-O {[%clk 0:02:57.7]} 6. d3 {[%clk 0:02:33.9]} 6... d6 {[%clk 0:02:45.7]}
7. Nc3 {[%clk 0:02:19.3]} 7... Nc6 {[%clk 0:02:38.3]} 8. e4 {[%clk 0:02:09.3]}
8... e6 {[%clk 0:02:10.8]} 9. Qe2 {[%clk 0:01:54.2]} 9... Re8 {[%clk 0:02:05.9]}
10. Kh1 {[%clk 0:01:52.1]} 10... Bd7 {[%clk 0:01:57.1]} 11. e5 {[%clk
0:01:40.4]} 11... Ng4 {[%clk 0:01:41.1]} 12. d4 {[%clk 0:01:33.3]} 12... d5
{[%clk 0:01:40.4]} 13. h3 {[%clk 0:01:28.2]} 13... Nh6 {[%clk 0:01:39.6]} 14.
Ng5 {[%clk 0:01:21.1]} 14... Nf7 {[%clk 0:01:35.7]} 15. Nxf7 {[%clk 0:01:18.3]}
15... Kxf7 {[%clk 0:01:35.2]} 16. Be3 {[%clk 0:01:17]} 16... Ne7 {[%clk
0:01:34.3]} 17. g4 {[%clk 0:01:13.2]} 17... b6 {[%clk 0:01:27.6]} 18. a4 {[%clk
0:01:10.8]} 18... Rc8 {[%clk 0:01:11]} 19. a5 {[%clk 0:01:05.7]} 19... c5 {[%clk
0:01:08]} 20. axb6 {[%clk 0:01:01.9]} 20... axb6 {[%clk 0:01:08.9]} 21. Ra7
{[%clk 0:01:00]} 21... cxd4 {[%clk 0:00:37.6]} 22. Bxd4 {[%clk 0:00:47.7]} 22...
Nc6 {[%clk 0:00:33.6]} 23. Bxb6 {[%clk 0:00:30.5]} 23... Qxb6 {[%clk 0:00:29]}
24. Rxd7+ {[%clk 0:00:29.1]} 24... Re7 {[%clk 0:00:29.9]} 25. Rxe7+ {[%clk
0:00:15.7]} 25... Nxe7 {[%clk 0:00:30.8]} 26. gxf5 {[%clk 0:00:12.9]} 26... Nxf5
{[%clk 0:00:30.2]} 27. Nxd5 {[%clk 0:00:10.3]} 27... exd5 {[%clk 0:00:26.9]} 28.
Bxd5+ {[%clk 0:00:10.1]} 28... Ke8 {[%clk 0:00:26]} 29. Qd3 {[%clk 0:00:05.7]}
29... Rd8 {[%clk 0:00:20.6]} 30. c4 {[%clk 0:00:04.7]} 30... Qxb2 {[%clk
0:00:14.3]} 31. Rb1 {[%clk 0:00:05.6]} 31... Ng3+ {[%clk 0:00:13.7]} 32. Kg1
{[%clk 0:00:04.3]} 32... Ne2+ {[%clk 0:00:13]} 33. Kf2 {[%clk 0:00:03.3]} 33...
Nxf4+ {[%clk 0:00:11.9]} 34. Kf3 {[%clk 0:00:01.2]} 34... Nxd3 {[%clk
0:00:11.7]} 0-1